bitfinex-derivatives/quotes_SOLF0:USTF0_20260226
["timestamp","ask_amount","ask_price","bid_price","bid_amount"]
[1772117604352,4.43191178,86.587,86.495,4.60643407]
[1772117604550,4.43191178,86.584,86.495,4.60643407]
[1772117604956,4.43191178,86.609,86.511,4.60643407]
[1772117605444,4.43191178,86.609,86.532,10.4003]
[1772117605642,4.43191178,86.609,86.511,4.60643407]
[1772117606056,4.43191178,86.609,86.548,10.3984]
[1772117606448,4.43191178,86.609,86.491,21.40461435]
[1772117606654,4.32896825,86.581,86.492,4.52813273]
[1772117607553,10.3947,86.58,86.529,10.4007]
[1772117607750,4.32896825,86.603,86.529,10.4007]
[1772117607953,4.32896825,86.603,86.514,4.52813273]
[1772117608248,4.32896825,86.603,86.537,10.3998]
[1772117608249,10.3937,86.589,86.537,10.3998]
[1772117608652,10.3937,86.589,86.514,4.52813273]
[1772117608653,4.32896825,86.603,86.514,4.52813273]
[1772117608848,10.3931,86.593,86.514,4.52813273]
[1772117609050,4.32896825,86.603,86.531,4.52813273]
[1772117609255,4.32896825,86.629,86.531,4.52813273]
[1772117609454,10.3908,86.612,86.559,10.3971]
[1772117609659,4.32896825,86.629,86.559,10.3971]
[1772117609953,4.32896825,86.629,86.552,4.52813273]
[1772117610556,4.32896825,86.629,86.572,10.3955]
[1772117611153,4.32896825,86.629,86.581,10.3945]
[1772117611357,8.23937356,86.65,86.552,4.52813273]
[1772117611558,4.32896825,86.649,86.552,4.52813273]
[1772117611862,4.32896825,86.649,86.587,10.3938]
[1772117612160,4.32896825,86.649,86.573,4.52813273]
[1772117612563,8.23937356,86.67,86.602,10.392]
[1772117612767,8.23937356,86.67,86.593,4.52813273]
[1772117612955,4.32896825,86.669,86.593,4.52813273]
[1772117613150,4.32896825,86.669,86.571,4.52813273]
[1772117613358,4.32896825,86.649,86.571,4.52813273]
[1772117613762,4.32896825,86.629,86.559,10.3971]
[1772117614158,4.32896825,86.629,86.549,4.52813273]
[1772117614358,4.32896825,86.629,86.531,4.52813273]
[1772117615565,4.32896825,86.609,86.531,4.52813273]
[1772117616267,4.32896825,86.589,86.508,4.52813273]
[1772117616753,10.3949,86.578,86.508,4.52813273]
[1772117616951,4.32896825,86.589,86.508,4.52813273]
[1772117617153,8.23937356,86.6,86.511,4.52813273]
[1772117617565,4.32896825,86.612,86.532,4.52813273]
[1772117619259,4.61959195,86.609,86.532,4.52813273]
[1772117619466,10.3928,86.596,86.532,4.52813273]
[1772117619668,4.61959195,86.609,86.532,4.52813273]
[1772117620154,4.61959195,86.609,86.55,10.3981]
[1772117620356,4.61959195,86.609,86.532,4.52813273]
[1772117620765,4.61959195,86.609,86.558,10.3972]
[1772117621264,8.23937356,86.65,86.551,4.29459748]
[1772117621464,4.61959195,86.649,86.551,4.29459748]
[1772117621867,4.61959195,86.649,86.572,4.29459748]
[1772117622268,8.23937356,86.67,86.572,4.29459748]
[1772117622459,4.61959195,86.669,86.572,4.29459748]
[1772117622662,10.3864,86.649,86.594,10.3929]
[1772117622866,4.61959195,86.669,86.594,10.3929]
[1772117623167,4.61959195,86.669,86.602,10.392]
[1772117623664,4.61959195,86.669,86.618,10.3901]
[1772117623960,4.61959195,86.669,86.6,4.29459748]
[1772117625266,4.61959195,86.669,86.58,12.53397104]
[1772117625564,4.61959195,86.669,86.581,4.29459748]
[1772117626168,4.61959195,86.689,86.581,4.29459748]
[1772117626565,4.61959195,86.689,86.606,4.29459748]
[1772117627070,10.3818,86.688,86.63,10.3885]
[1772117627268,4.61959195,86.679,86.606,4.29459748]
[1772117628258,4.61959195,86.679,86.629,10.3888]
[1772117628571,4.61959195,86.679,86.606,4.29459748]
[1772117628772,4.61959195,86.677,86.626,10.389]
[1772117629266,8.2189693,86.68,86.606,4.29459748]
[1772117629473,4.61959195,86.699,86.606,4.29459748]
[1772117630064,4.61959195,86.699,86.611,4.29459748]
[1772117630971,4.61959195,86.699,86.648,10.3864]
[1772117630972,10.3808,86.696,86.648,10.3864]
[1772117631562,4.61959195,86.699,86.648,10.3864]
[1772117631765,4.61959195,86.699,86.632,4.29459748]
[1772117631961,8.2189693,86.72,86.632,4.29459748]
[1772117632168,8.2189693,86.72,86.665,10.3843]
[1772117632365,5.19326823,86.73,86.651,4.29459748]
[1772117632669,2.0070651,86.773,86.693,4.29459748]
[1772117632971,8.2189693,86.77,86.693,4.29459748]
[1772117633273,10.3769,86.728,86.667,10.3841]
[1772117633668,8.2189693,86.71,86.621,4.29459748]
[1772117633876,10.3793,86.709,86.621,4.29459748]
[1772117634377,10.3803,86.7,86.635,10.388]
[1772117635272,10.3803,86.7,86.621,4.29459748]
[1772117635273,3.79429459,86.709,86.621,4.29459748]
[1772117635965,3.79429459,86.709,86.647,10.3866]
[1772117636161,3.79429459,86.709,86.621,4.29459748]
[1772117636376,10.3792,86.71,86.658,10.3852]
[1772117636569,3.88926713,86.729,86.658,10.3852]
[1772117636774,3.88926713,86.729,86.631,4.59075477]
[1772117637079,8.2189693,86.75,86.66,4.59075477]
[1772117637267,3.88898213,86.749,86.66,4.59075477]
[1772117637772,3.90811072,86.747,86.671,4.59075477]
[1772117637976,8.2189693,86.76,86.671,4.59075477]
[1772117638368,3.90785462,86.759,86.671,4.59075477]
[1772117638570,13.40874358,86.76,86.671,4.59075477]
[1772117638571,3.90785462,86.739,86.671,4.59075477]
[1772117638879,10.3758,86.738,86.671,4.59075477]
[1772117639071,3.90786681,86.738,86.649,4.59075477]
[1772117639469,10.3787,86.713,86.661,10.3849]
[1772117639771,3.90786681,86.738,86.649,4.59075477]
[1772117639972,10.3759,86.737,86.68,10.3826]
[1772117640169,12.11592272,86.76,86.651,4.59075477]
[1772117640375,3.89695342,86.759,86.671,4.59075477]
[1772117640773,3.89696644,86.749,86.658,4.59075477]
[1772117641178,3.89696644,86.749,86.669,10.3839]
[1772117641179,10.3766,86.731,86.669,10.3839]
[1772117641474,3.89696644,86.749,86.658,4.59075477]
[1772117641679,3.89696644,86.749,86.686,10.3819]
[1772117641876,3.91682944,86.749,86.671,4.59075477]
[1772117642175,10.3795,86.707,86.655,10.3856]
[1772117642375,3.91659912,86.709,86.627,4.59075477]
[1772117642583,3.91659912,86.689,86.591,4.59075477]
[1772117642976,3.91660985,86.669,86.591,4.59075477]
[1772117643371,3.91640077,86.666,86.614,10.3905]
[1772117643577,3.91640077,86.689,86.591,4.59075477]
[1772117644273,3.8461598,86.677,86.619,10.39]
[1772117644475,3.8461598,86.677,86.591,4.59075477]
[1772117644882,8.2189693,86.69,86.591,4.59075477]
[1772117644883,3.84617448,86.669,86.591,4.59075477]
[1772117645277,3.84617448,86.669,86.571,4.59075477]
[1772117645479,3.84596928,86.659,86.571,4.59075477]
[1772117645983,8.2189693,86.67,86.596,4.59075477]
[1772117645984,3.83843957,86.669,86.596,4.59075477]
[1772117646488,10.3872,86.643,86.577,10.3949]
[1772117646784,8.2189693,86.65,86.571,4.59075477]
[1772117647178,10.3881,86.635,86.574,10.3954]
[1772117647382,10.3881,86.635,86.575,4.59075477]
[1772117647581,3.83815925,86.659,86.575,4.59075477]
[1772117648486,10.3882,86.634,86.575,14.98585477]
[1772117648792,10.3882,86.634,86.575,4.59075477]
[1772117649079,3.83436382,86.649,86.551,4.59075477]
[1772117649283,3.83436382,86.639,86.551,4.59075477]
[1772117649679,10.3912,86.609,86.551,4.59075477]
[1772117649880,8.2189693,86.62,86.551,4.59075477]
[1772117650688,5.1923185,86.63,86.551,4.59075477]
[1772117650689,3.83436382,86.639,86.551,4.59075477]
[1772117650888,12.05207767,86.63,86.551,4.59075477]
[1772117651475,8.2189693,86.65,86.551,4.59075477]
[1772117651784,3.83293592,86.649,86.551,4.59075477]
[1772117652288,13.41168324,86.65,86.551,4.59075477]
[1772117652289,3.8314225,86.629,86.551,4.59075477]
[1772117652784,8.2189693,86.63,86.551,4.59075477]
[1772117652982,3.83127075,86.629,86.53,4.59075477]
[1772117653191,10.3935,86.59,86.53,4.59075477]
[1772117653582,3.83111142,86.609,86.53,4.59075477]
[1772117653785,8.2189693,86.63,86.481,4.59075477]
[1772117653786,3.846325,86.569,86.481,4.59075477]
[1772117654280,3.84618395,86.549,86.461,4.59075477]
[1772117654784,3.84619156,86.529,86.431,4.59075477]
[1772117655388,10.4022,86.517,86.447,10.4106]
[1772117655583,3.84619156,86.529,86.431,4.59075477]
[1772117655784,10.4034,86.508,86.437,10.4118]
[1772117656587,10.4034,86.508,86.446,10.4107]
[1772117657188,10.4021,86.519,86.459,10.4092]
[1772117657389,3.82314007,86.549,86.451,4.59075477]
[1772117657683,3.82314007,86.549,86.471,4.59075477]
[1772117658287,10.3985,86.548,86.471,4.59075477]
[1772117658686,3.82314007,86.549,86.471,4.59075477]
[1772117658886,10.3998,86.538,86.474,10.4073]
[1772117659084,3.82314007,86.549,86.471,4.59075477]
[1772117659882,3.80893573,86.559,86.47,4.59075477]
[1772117660090,12.02790503,86.54,86.47,4.59075477]
[1772117660390,3.80881458,86.539,86.47,4.59075477]
[1772117661383,3.80881458,86.539,86.481,10.4065]
[1772117661690,3.80867715,86.559,86.481,10.4065]
[1772117661988,10.399,86.544,86.481,10.4065]
[1772117662189,3.83972633,86.539,86.47,4.59075477]
[1772117662691,10.4001,86.535,86.47,4.59075477]
[1772117662893,8.2189693,86.56,86.474,4.59075477]
[1772117663284,10.3977,86.555,86.5,10.4042]
[1772117663483,8.2189693,86.56,86.474,4.59075477]
[1772117663685,3.83973158,86.562,86.481,4.59075477]
[1772117663983,3.82817786,86.559,86.481,4.59075477]
[1772117666388,14.22547786,86.559,86.493,10.405]
[1772117666982,14.22547786,86.559,86.502,10.404]
[1772117667184,3.78295256,86.578,86.491,4.43494455]
[1772117667894,3.78233595,86.599,86.511,4.43494455]
[1772117668293,3.78218379,86.621,86.531,4.43494455]
[1772117668489,3.78218379,86.618,86.531,4.43494455]
[1772117668691,3.7821931,86.599,86.531,4.43494455]
[1772117668893,3.7821931,86.599,86.509,4.43494455]
[1772117669197,20.778,86.628,86.509,4.43494455]
[1772117669198,3.7821931,86.579,86.509,4.43494455]
[1772117669388,3.7821931,86.579,86.535,10.4]
[1772117669590,3.7821931,86.579,86.509,4.43494455]
[1772117670090,10.3952,86.576,86.526,10.4011]
[1772117670285,3.7821931,86.579,86.509,4.43494455]
[1772117670485,3.7821931,86.579,86.472,4.43494455]
[1772117670687,10.396,86.57,86.503,10.4038]
[1772117670889,3.7821931,86.579,86.503,10.4038]
[1772117671089,3.7821931,86.579,86.492,4.43494455]
[1772117671492,10.3969,86.562,86.492,4.43494455]
[1772117672297,10.3978,86.554,86.492,4.43494455]
[1772117673297,3.98126351,86.553,86.492,4.43494455]
[1772117673597,20.7838,86.604,86.492,4.43494455]
[1772117673598,3.98126351,86.575,86.492,4.43494455]
[1772117674091,8.2189693,86.58,86.47,29.0347693]
[1772117674092,3.97264423,86.579,86.49,8.2189693]
[1772117674298,3.97264423,86.579,86.491,4.43494455]
[1772117674902,3.97255692,86.599,86.511,4.43494455]
[1772117675300,8.2189693,86.6,86.511,4.43494455]
[1772117675301,3.97252338,86.587,86.511,4.43494455]
[1772117675795,10.3953,86.575,86.512,10.4027]
[1772117675998,3.97252338,86.579,86.511,4.43494455]
[1772117676391,3.97252338,86.579,86.49,8.2189693]
[1772117676591,3.97731631,86.559,86.489,4.43494455]
[1772117676788,3.97732003,86.579,86.489,4.43494455]
[1772117676998,10.396,86.569,86.512,10.4027]
[1772117677407,3.97732003,86.579,86.489,4.43494455]
[1772117677791,10.3959,86.57,86.511,10.4029]
[1772117677990,3.97732003,86.579,86.489,4.43494455]
[1772117679002,10.3959,86.57,86.489,4.43494455]
[1772117679604,3.97732003,86.579,86.489,4.43494455]
[1772117679800,3.98583466,86.559,86.489,4.43494455]
[1772117679996,3.98583466,86.559,86.462,4.2642887]
[1772117680200,8.2189693,86.54,86.462,4.2642887]
[1772117680603,3.98568934,86.539,86.442,4.2642887]
[1772117681000,10.4018,86.521,86.464,10.4086]
[1772117681401,8.2189693,86.52,86.442,4.2642887]
[1772117681599,8.2189693,86.52,86.462,10.4088]
[1772117681803,3.98568934,86.539,86.451,4.2642887]
[1772117682302,3.98568934,86.539,86.473,4.2642887]
[1772117682893,3.98568934,86.539,86.483,10.4063]
[1772117683403,8.2189693,86.55,86.473,4.2642887]
[1772117684096,10.3987,86.547,86.497,10.4046]
[1772117684293,3.96338579,86.56,86.473,4.2642887]
[1772117684605,10.4005,86.532,86.48,10.4066]
[1772117684795,3.9232722,86.549,86.473,4.2642887]
[1772117685707,10.3942,86.584,86.535,10.4]
[1772117686004,3.92314675,86.59,86.535,10.4]
[1772117686200,3.92314675,86.59,86.545,10.3988]
[1772117686398,10.3926,86.597,86.545,10.3988]
[1772117686604,3.9258727,86.609,86.521,4.2642887]
[1772117686804,10.3926,86.597,86.544,10.3989]
[1772117687202,3.9258727,86.609,86.521,4.2642887]
[1772117687400,3.92574944,86.586,86.501,4.2642887]
[1772117687898,3.92574944,86.586,86.504,10.4037]
[1772117688098,3.92574944,86.586,86.501,4.2642887]
[1772117688304,10.3988,86.546,86.495,10.4048]
[1772117688500,3.88742448,86.569,86.481,4.2642887]
[1772117688700,3.88742448,86.569,86.46,8.2189693]
[1772117688701,3.88730514,86.549,86.461,4.2642887]
[1772117688902,14.28601112,86.547,86.461,4.2642887]
[1772117689299,3.88720246,86.569,86.471,4.2642887]
[1772117689504,3.88720246,86.56,86.501,10.4041]
[1772117690203,10.3973,86.559,86.501,10.4041]
[1772117690404,3.88720246,86.56,86.493,10.4051]
[1772117690609,3.93564773,86.549,86.472,4.2642887]
[1772117690804,3.93565364,86.529,86.451,4.2642887]
[1772117691099,3.93565364,86.529,86.476,10.4071]
[1772117691503,3.93565364,86.529,86.483,10.4062]
[1772117691698,3.93565364,86.529,86.451,4.2642887]
[1772117691896,3.92988929,86.527,86.451,4.2642887]
[1772117692096,3.92988929,86.527,86.48,10.4066]
[1772117692301,484.7341,86.643,86.47,4.2642887]
[1772117692302,3.92977313,86.548,86.47,4.2642887]
[1772117692707,3.92977313,86.548,86.471,4.2642887]
[1772117693404,10.3963,86.567,86.49,4.2642887]
[1772117693610,3.92965827,86.566,86.451,4.2642887]
[1772117693810,4.05293135,86.539,86.451,4.2642887]
[1772117694009,4.05293135,86.539,86.482,10.4064]
[1772117694310,4.05293135,86.559,86.47,4.2642887]
[1772117694509,10.3982,86.551,86.491,10.4053]
[1772117694814,4.05293135,86.559,86.432,20.8249]
[1772117694815,4.05293135,86.559,86.471,4.2642887]
[1772117696605,4.05429005,86.579,86.491,4.25544934]
[1772117697313,10.3962,86.568,86.52,10.4018]
[1772117697706,4.05429005,86.579,86.529,10.4007]
[1772117697914,4.05429005,86.579,86.51,4.25544934]
[1772117697915,4.05291423,86.6,86.511,4.25544934]
[1772117698311,4.05291423,86.6,86.537,10.3998]
[1772117698509,4.05279303,86.62,86.538,4.25544934]
[1772117698813,10.3909,86.612,86.556,10.3974]
[1772117699010,4.05279303,86.62,86.538,4.25544934]
[1772117699314,4.05267253,86.619,86.538,4.25544934]
[1772117699613,10.39366324,86.647,86.538,4.25544934]
[1772117699614,4.05267253,86.641,86.55,8.24164087]
[1772117699913,10.3881,86.635,86.55,8.24164087]
[1772117700105,485.42059084,86.656,86.538,4.25544934]
[1772117700106,485.42059084,86.656,86.57,8.24164087]
[1772117700304,4.06318988,86.68,86.59,8.24164087]
[1772117700605,4.06318988,86.666,86.57,8.24164087]
[1772117700914,4.06318988,86.666,86.571,4.25544934]
[1772117700915,10.3881,86.635,86.571,4.25544934]
[1772117701108,12.30483568,86.65,86.571,4.25544934]
[1772117701310,4.06311908,86.649,86.571,4.25544934]
[1772117701609,10.3889,86.629,86.571,4.25544934]
[1772117701814,4.06311908,86.649,86.571,4.25544934]
[1772117702421,4.08784945,86.629,86.55,4.25544934]
[1772117702710,8.24164087,86.65,86.572,4.25544934]
[1772117703103,12.32949466,86.65,86.572,4.25544934]
[1772117703312,10.3867,86.647,86.584,10.3941]
[1772117703516,4.08769886,86.646,86.572,4.25544934]
[1772117703820,4.08769886,86.646,86.582,4.25544934]
[1772117704011,4.0908407,86.67,86.582,4.25544934]
[1772117704314,4.09067883,86.658,86.592,10.3932]
[1772117704619,4.09067883,86.658,86.536,161.7768]
[1772117704620,4.09067883,86.68,86.601,4.25544934]
[1772117704813,4.09067883,86.68,86.6,8.24164087]
[1772117704814,4.09068337,86.699,86.628,4.25544934]
[1772117705210,4.09068337,86.699,86.6,8.24164087]
[1772117705211,12.33216126,86.68,86.608,10.3912]
[1772117705412,4.09052039,86.677,86.608,10.3912]
[1772117705711,8.24164087,86.66,86.581,4.25544934]
[1772117705914,8.24164087,86.66,86.597,10.3925]
[1772117706218,4.11109412,86.659,86.581,4.25544934]
[1772117706720,8.24164087,86.69,86.601,4.25544934]
[1772117707014,4.1109005,86.702,86.636,10.3878]
[1772117707220,4.1109005,86.702,86.621,4.25544934]
[1772117707524,4.11073759,86.725,86.621,4.25544934]
[1772117708815,10.3785,86.715,86.646,4.25544934]
[1772117709022,4.11073759,86.725,86.646,4.25544934]
[1772117709315,10.3787,86.713,86.649,10.3863]
[1772117709515,4.12748641,86.713,86.649,10.3863]
[1772117709711,4.17278427,86.709,86.646,4.25544934]
[1772117709915,4.17278427,86.709,86.621,4.25544934]
[1772117710310,8.24164087,86.73,86.621,4.25544934]
[1772117710511,4.17265131,86.736,86.661,4.25544934]
[1772117710714,4.17265131,86.758,86.69,10.3814]
[1772117711216,4.17265131,86.758,86.681,4.25544934]
[1772117711412,8.24164087,86.8,86.707,4.25544934]
[1772117711618,4.1724742,86.799,86.707,4.25544934]
[1772117712022,171.54166324,86.875,86.7,8.24164087]
[1772117712023,4.18835346,86.845,86.729,4.25544934]
[1772117712314,161.08,86.911,86.7,8.24164087]
[1772117712315,4.18809525,86.869,86.771,4.25544934]
[1772117712619,4.18809525,86.869,86.8,10.3682]
[1772117712814,4.18809973,86.859,86.771,4.25544934]
[1772117713125,8.24164087,86.86,86.771,4.25544934]
[1772117713126,4.18809973,86.839,86.771,4.25544934]
[1772117713320,4.18809973,86.818,86.72,8.24164087]
[1772117713522,4.18809973,86.818,86.73,8.24164087]
[1772117713716,4.32788815,86.809,86.71,8.24164087]
[1772117713920,4.32788815,86.809,86.701,230.82]
[1772117714117,4.32788815,86.789,86.701,230.82]
[1772117714316,8.24164087,86.79,86.706,10.3795]
[1772117714317,4.32788815,86.786,86.706,10.3795]
[1772117714918,4.32788815,86.783,86.693,10.3811]
[1772117715523,4.32788815,86.778,86.705,10.3797]
[1772117715718,4.32788815,86.778,86.694,4.25544934]
[1772117715922,4.32788815,86.778,86.568,20.98715753]
[1772117715923,4.32788815,86.804,86.686,161.4969]
[1772117716115,4.32788815,86.804,86.713,4.25544934]
[1772117716314,4.32788815,86.827,86.722,4.25544934]
[1772117716514,4.32788815,86.827,86.701,161.4689]
[1772117716515,4.32788815,86.827,86.76,10.373]
[1772117716922,4.32788815,86.827,86.746,4.25544934]
[1772117717113,161.0685,86.917,86.727,161.4194]
[1772117717114,4.32788815,86.851,86.748,4.25544934]
[1772117717321,20.93001439,86.9,86.77,4.25544934]
[1772117717628,5.18418251,86.88,86.77,4.25544934]
[1772117717823,20.93001439,86.9,86.77,4.25544934]
[1772117718020,5.18418251,86.89,86.77,4.25544934]
[1772117718227,20.93001439,86.9,86.8,4.25544934]
[1772117718519,5.18355375,86.89,86.8,4.25544934]
[1772117718718,10.3579,86.888,86.8,4.25544934]
[1772117718925,5.18355375,86.89,86.8,4.25544934]
[1772117719423,4.32788815,86.889,86.8,4.25544934]
[1772117719821,4.32788815,86.889,86.825,10.3652]
[1772117720123,4.32788815,86.889,86.8,4.25544934]
[1772117720515,4.32788815,86.888,86.8,4.25544934]
[1772117721315,4.32788815,86.91,86.801,4.25544934]
[1772117721617,4.32788815,86.91,86.823,4.25544934]
[1772117721816,17.42445266,86.894,86.823,4.25544934]
[1772117722216,17.42445266,86.894,86.8,4.25544934]
[1772117722217,4.32788815,86.893,86.8,4.25544934]
[1772117722622,4.32788815,86.889,86.8,4.25544934]
[1772117723422,17.42445266,86.894,86.801,4.25544934]
[1772117723621,17.42445266,86.894,86.793,161.2978]
[1772117723622,17.42445266,86.894,86.829,4.25544934]
[1772117724030,14.68508815,86.893,86.82,10.3658]
[1772117724523,17.42445266,86.894,86.806,4.25544934]
[1772117724728,17.42445266,86.894,86.787,161.3091]
[1772117724729,5.266e-05,86.894,86.855,10.3616]
[1772117725524,5.266e-05,86.894,86.843,14.61854934]
[1772117725924,5.266e-05,86.894,86.844,4.25544934]
[1772117726226,5.266e-05,86.894,86.854,10.3617]
[1772117726427,5.266e-05,86.894,86.844,4.25544934]
[1772117726923,5.266e-05,86.894,86.859,4.64926261]
[1772117727325,5.266e-05,86.894,86.821,4.64926261]
[1772117727828,5.266e-05,86.894,86.853,4.64926261]
[1772117728220,5.266e-05,86.894,86.854,10.3618]
[1772117728622,5.266e-05,86.894,86.854,4.64926261]
[1772117728823,5.266e-05,86.894,86.876,10.3591]
[1772117729021,5.266e-05,86.894,86.854,4.64926261]
[1772117729729,5.266e-05,86.894,86.829,4.64926261]
[1772117730217,14.68330963,86.893,86.78,20.93001439]
[1772117730416,4.32610963,86.892,86.781,4.64926261]
[1772117730614,4.32610963,86.889,86.781,4.64926261]
[1772117731321,4.32610963,86.889,86.805,4.64926261]
[1772117731519,4.32610963,86.889,86.76,20.93001439]
[1772117731520,4.32610963,86.889,86.761,4.64926261]
[1772117731820,4.32610963,86.869,86.761,4.64926261]
[1772117732019,4.32610963,86.893,86.781,4.64926261]
[1772117732219,4.32610963,86.893,86.791,4.64926261]
[1772117732420,4.32610963,86.893,86.801,4.64926261]
[1772117732625,4.32610963,86.893,86.842,10.3632]
[1772117732821,5.266e-05,86.894,86.822,4.64926261]
[1772117733022,4.32610963,86.893,86.822,4.64926261]
[1772117733222,4.32610963,86.878,86.812,10.3668]
[1772117733424,4.32610963,86.878,86.799,4.64926261]
[1772117733623,4.32610963,86.878,86.827,10.365]
[1772117734025,4.32610963,86.878,86.799,4.64926261]
[1772117734726,4.32610963,86.873,86.801,10.3681]
[1772117735430,5.266e-05,86.894,86.804,4.64926261]
[1772117735633,4.32610963,86.893,86.804,4.64926261]
[1772117737126,4.32610963,86.893,86.816,10.3664]
[1772117737326,4.32610963,86.893,86.804,4.64926261]
[1772117738127,4.32610963,86.879,86.806,4.64926261]
[1772117738826,5.266e-05,86.894,86.811,4.36732865]
[1772117739532,5.266e-05,86.894,86.794,161.2953]
[1772117739533,5.266e-05,86.894,86.831,4.36732865]
[1772117739834,5.266e-05,86.894,86.851,4.36732865]
[1772117740232,5.266e-05,86.894,86.821,4.36732865]
[1772117740436,4.58475795,86.894,86.801,4.36732865]
[1772117740632,10.3585,86.882,86.801,4.36732865]
[1772117741238,4.58475795,86.894,86.801,4.36732865]
[1772117741239,4.58470529,86.879,86.801,4.36732865]
[1772117741633,10.3616,86.857,86.791,10.3693]
[1772117741830,4.58470529,86.869,86.78,4.36732865]
[1772117742025,4.58470529,86.869,86.74,20.88426607]
[1772117742026,4.58470529,86.868,86.742,4.36732865]
[1772117742232,4.58470529,86.841,86.742,4.36732865]
[1772117742831,4.58470529,86.863,86.777,4.36732865]
[1772117743335,10.3623,86.851,86.777,4.36732865]
[1772117743528,4.58470529,86.863,86.777,4.36732865]
[1772117744334,4.58470529,86.889,86.777,4.36732865]
[1772117744530,4.58470529,86.889,86.802,4.36732865]
[1772117745332,4.58470529,86.914,86.802,4.36732865]
[1772117745536,4.58470529,86.914,86.834,4.36732865]
[1772117745736,4.58470529,86.948,86.834,4.36732865]
[1772117746436,4.58470529,86.948,86.82,182.13096607]
[1772117746437,4.58470529,86.948,86.886,10.3579]
[1772117746841,4.58470529,86.948,86.86,4.36732865]
[1772117747643,4.58470529,86.948,86.821,4.36732865]
[1772117747944,10.3537,86.923,86.843,4.36732865]
[1772117748145,4.58470529,86.927,86.843,4.36732865]
[1772117748440,10.3536,86.923,86.866,10.3604]
[1772117748645,4.58470529,86.927,86.843,4.36732865]
[1772117748833,4.58470529,86.948,86.843,4.36732865]
[1772117749035,4.58470529,86.948,86.859,4.36732865]
[1772117749036,10.3509,86.946,86.859,4.36732865]
[1772117749634,10.3509,86.946,86.893,10.3572]
[1772117750037,10.3519,86.938,86.859,4.36732865]
[1772117750238,803.07495105,86.97,86.859,4.36732865]
[1772117750239,4.58470529,86.937,86.859,4.36732865]
[1772117750639,4.58470529,86.937,86.857,10.3614]
[1772117750840,4.58470529,86.937,86.821,4.36732865]
[1772117751040,5.17917397,86.94,86.821,4.36732865]
[1772117751041,10.3554,86.909,86.821,4.36732865]
[1772117751944,4.58470529,86.916,86.821,4.36732865]
[1772117752342,4.58470529,86.916,86.781,4.36732865]
[1772117752537,4.58470529,86.888,86.805,4.36732865]
[1772117753143,34.77,86.919,86.805,4.36732865]
[1772117753144,4.58470529,86.909,86.805,4.36732865]
[1772117753541,4.58470529,86.906,86.847,10.3627]
[1772117754042,4.58470529,86.906,86.808,4.36732865]
[1772117754445,10.3572,86.893,86.838,10.3637]
[1772117754645,4.58470529,86.892,86.808,4.36732865]
[1772117755647,10.3589,86.879,86.824,10.3654]
[1772117755842,4.58470529,86.892,86.808,4.36732865]
[1772117756252,10.3579,86.888,86.84,10.3635]
[1772117756449,4.68039587,86.918,86.808,4.36732865]
[1772117756651,4.68039587,86.918,86.811,4.52172867]
[1772117756950,4.68039587,86.918,86.836,4.52172867]
[1772117757951,4.68039587,86.918,86.811,4.52172867]
[1772117758148,10.3583,86.885,86.833,10.3643]
[1772117758347,4.68039587,86.896,86.811,4.52172867]
[1772117758746,10.3587,86.881,86.823,10.3655]
[1772117758946,4.68039587,86.896,86.811,4.52172867]
[1772117759349,10.3584,86.884,86.831,10.3646]
[1772117759752,10.3584,86.884,86.79,31.29282686]
[1772117759753,4.68039587,86.889,86.79,4.52172867]
[1772117759953,4.68039587,86.864,86.79,4.52172867]
[1772117760147,4.68039587,86.886,86.79,4.52172867]
[1772117760348,15.03849587,86.886,86.814,4.52172867]
[1772117760549,4.68039587,86.886,86.814,4.52172867]
[1772117761252,4.68039587,86.886,86.771,4.52172867]
[1772117761453,4.68039587,86.878,86.796,4.52172867]
[1772117761643,4.68039587,86.924,86.811,4.52172867]
[1772117762051,4.68039587,86.924,86.832,4.52172867]
[1772117762654,4.68039587,86.946,86.858,4.52172867]
[1772117762950,4.68039587,86.944,86.831,4.52172867]
[1772117763248,31.29282686,86.96,86.801,161.2835]
[1772117763249,8.16997529,86.94,86.851,4.52172867]
[1772117763450,4.68039587,86.939,86.851,4.52172867]
[1772117763851,10.3538,86.922,86.875,10.3593]
[1772117764047,4.68039587,86.939,86.851,4.52172867]
[1772117764252,8.16997529,86.94,86.851,4.52172867]
[1772117764253,10.3533,86.926,86.851,4.52172867]
[1772117764557,4.68039587,86.938,86.851,4.52172867]
[1772117764745,4.68039587,86.96,86.861,4.52172867]
[1772117764946,4.68039587,86.985,86.901,4.52172867]
[1772117765150,8.29879535,87.023,86.921,4.52172867]
[1772117765357,4.68039587,87.021,86.953,10.3499]
[1772117765746,4.68039587,87.021,86.917,4.52172867]
[1772117765747,4.68039587,87.019,86.921,4.52172867]
[1772117765951,4.68039587,87.019,86.94,10.3516]
[1772117766160,13.34862554,87.02,86.921,4.52172867]
[1772117766161,4.68039587,86.999,86.921,4.52172867]